[Event "Titled Tuesday Blitz March 14 Early 2023"]
[White "littlepillow2010"]
[Black "Jia, Haoxiang"]
[BlackFideId "8602999"]
[WhiteElo "2384"]
[BlackElo "2617"]
[Result "0-1"]
[Round "02"]
[TimeControl "180+2"]
[Date "2023.03.14"]
[WhiteClock "0:00:02"]
[BlackClock "0:00:15"]

1. e4 {[%clk 0:03:00]}  c5 {[%clk 0:02:38]} 2. Nf3 {[%clk 0:02:58]}  d6 {[%clk 0:02:38]} 3. d4 {[%clk 0:02:59]}  cxd4 {[%clk 0:02:39]} 4. Nxd4 {[%clk 0:02:59]}  Nf6 {[%clk 0:02:40]} 5. Nc3 {[%clk 0:03:00]}  g6 {[%clk 0:02:40]} 6. Be3 {[%clk 0:02:59]}  Bg7 {[%clk 0:02:40]} 7. f3 {[%clk 0:03:00]}  O-O {[%clk 0:02:41]} 8. Qd2 {[%clk 0:03:00]}  Nc6 {[%clk 0:02:41]} 9. O-O-O {[%clk 0:03:01]}  d5 {[%clk 0:02:41]} 10. exd5 {[%clk 0:03:01]}  Nxd5 {[%clk 0:02:41]} 11. Nxc6 {[%clk 0:03:02]}  bxc6 {[%clk 0:02:42]} 12. Nxd5 {[%clk 0:03:02]}  cxd5 {[%clk 0:02:42]} 13. Qxd5 {[%clk 0:03:03]}  Qc7 {[%clk 0:02:42]} 14. Qc5 {[%clk 0:03:03]}  Qb7 {[%clk 0:02:41]} 15. b3 {[%clk 0:03:03]}  Bf5 {[%clk 0:02:33]} 16. Bd3 {[%clk 0:03:03]}  Rfc8 {[%clk 0:02:24]} 17. Qa5 {[%clk 0:03:02]}  Bc3 {[%clk 0:02:04]} 18. Qb5 {[%clk 0:03:01]}  Qxb5 {[%clk 0:01:25]} 19. Bxb5 {[%clk 0:03:02]}  a5 {[%clk 0:01:19]} 20. a4 {[%clk 0:02:53]}  Bb4 {[%clk 0:01:07]} 21. Bd3 {[%clk 0:02:52]}  Be6 {[%clk 0:01:07]} 22. Kb2 {[%clk 0:02:45]}  Rab8 {[%clk 0:01:01]} 23. Bd4 {[%clk 0:02:29]}  f6 {[%clk 0:00:51]} 24. Bb5 {[%clk 0:02:10]}  Kf7 {[%clk 0:00:49]} 25. c3 {[%clk 0:02:03]}  Bd6 {[%clk 0:00:47]} 26. g3 {[%clk 0:01:32]}  h5 {[%clk 0:00:43]} 27. Rhe1 {[%clk 0:01:09]}  h4 {[%clk 0:00:42]} 28. f4 {[%clk 0:01:02]}  Bg4 {[%clk 0:00:38]} 29. Rd2 {[%clk 0:00:50]}  hxg3 {[%clk 0:00:38]} 30. hxg3 {[%clk 0:00:50]}  Rh8 {[%clk 0:00:37]} 31. Bc4+ {[%clk 0:00:28]}  Kg7 {[%clk 0:00:28]} 32. Be6 {[%clk 0:00:26]}  Bf3 {[%clk 0:00:19]} 33. Re3 {[%clk 0:00:17]}  Bc6 {[%clk 0:00:18]} 34. Kc2 {[%clk 0:00:16]}  Rh1 {[%clk 0:00:18]} 35. Rf2 {[%clk 0:00:09]}  Rbh8 {[%clk 0:00:17]} 36. Kd3 {[%clk 0:00:07]}  Rd1+ {[%clk 0:00:17]} 37. Rd2 {[%clk 0:00:06]}  Rb1 {[%clk 0:00:17]} 38. Ree2 {[%clk 0:00:04]}  Bb7 {[%clk 0:00:17]} 39. Ke3 {[%clk 0:00:04]}  Rh3 {[%clk 0:00:16]} 40. Kf2 {[%clk 0:00:03]}  Rhh1 {[%clk 0:00:16]} 41. Ke3 {[%clk 0:00:03]}  Rhf1 {[%clk 0:00:16]} 42. Rf2 {[%clk 0:00:03]}  Rfe1+ {[%clk 0:00:16]} 43. Rde2 {[%clk 0:00:04]}  Ba6 {[%clk 0:00:16]} 44. Rxe1 {[%clk 0:00:02]}  Rxe1+ {[%clk 0:00:16]} 45. Kd2 {[%clk 0:00:03]}  Rxe6 {[%clk 0:00:16]} 46. c4 {[%clk 0:00:03]}  Bb4+ {[%clk 0:00:16]} 47. Kc2 {[%clk 0:00:03]}  Bb7 {[%clk 0:00:16]} 48. Bc3 {[%clk 0:00:04]}  Be4+ {[%clk 0:00:16]} 49. Kb2 {[%clk 0:00:04]}  Bxc3+ {[%clk 0:00:16]} 50. Kxc3 {[%clk 0:00:05]}  Rd6 {[%clk 0:00:17]} 51. c5 {[%clk 0:00:04]}  Rd3+ {[%clk 0:00:17]} 52. Kc4 {[%clk 0:00:05]}  Rxg3 {[%clk 0:00:18]} 53. b4 {[%clk 0:00:05]}  axb4 {[%clk 0:00:18]} 54. Kxb4 {[%clk 0:00:06]}  Bc6 {[%clk 0:00:18]} 55. a5 {[%clk 0:00:06]}  g5 {[%clk 0:00:19]} 56. a6 {[%clk 0:00:03]}  gxf4 {[%clk 0:00:18]} 57. Rxf4 {[%clk 0:00:03]}  Rg1 {[%clk 0:00:18]} 58. a7 {[%clk 0:00:03]}  Rb1+ {[%clk 0:00:17]} 59. Ka5 {[%clk 0:00:02]}  Kf7 {[%clk 0:00:16]} 60. Ka6 {[%clk 0:00:01]}  Ke6 {[%clk 0:00:15]} 61. Rd4 {[%clk 0:00:02]}  f5 {[%clk 0:00:15]} 62. Rd8 {[%clk 0:00:02]}  f4 {[%clk 0:00:15]} 63. Rb8 {[%clk 0:00:03]}  Ra1+ {[%clk 0:00:15]} 64. Kb6 {[%clk 0:00:03]}  Be4 {[%clk 0:00:15]} 65. c6 {[%clk 0:00:04]}  Bxc6 {[%clk 0:00:15]} 66. Kxc6 {[%clk 0:00:04]}  Rxa7 {[%clk 0:00:16]} 67. Rb4 {[%clk 0:00:03]}  Kf5 {[%clk 0:00:15]} 68. Rb1 {[%clk 0:00:03]}  e5 {[%clk 0:00:15]} 69. Kd6 {[%clk 0:00:03]}  Ra5 {[%clk 0:00:15]} 70. Re1 {[%clk 0:00:02]}  f3 {[%clk 0:00:15]} 0-1


[Site "https://www.chess.com"]

[Event "Titled Tuesday Blitz March 14 Early 2023"]
[White "ArtemDyachuk"]
[Black "polandchessplayer"]
[WhiteElo "2374"]
[BlackElo "2603"]
[Result "0-1"]
[Round "02"]
[TimeControl "180+2"]
[Date "2023.03.14"]
[WhiteClock "0:00:02"]
[BlackClock "0:01:25"]

1. Nf3 {[%clk 0:02:59]}  Nf6 {[%clk 0:02:59]} 2. c4 {[%clk 0:02:59]}  g6 {[%clk 0:03:00]} 3. b3 {[%clk 0:02:53]}  Bg7 {[%clk 0:03:00]} 4. Bb2 {[%clk 0:02:54]}  O-O {[%clk 0:03:00]} 5. e3 {[%clk 0:02:54]}  c6 {[%clk 0:03:00]} 6. Nc3 {[%clk 0:02:42]}  d5 {[%clk 0:03:00]} 7. cxd5 {[%clk 0:02:40]}  cxd5 {[%clk 0:03:01]} 8. d4 {[%clk 0:02:40]}  Nc6 {[%clk 0:03:00]} 9. Bd3 {[%clk 0:02:40]}  Bf5 {[%clk 0:03:01]} 10. a3 {[%clk 0:02:31]}  Ne4 {[%clk 0:03:00]} 11. Qc2 {[%clk 0:02:22]}  Rc8 {[%clk 0:02:58]} 12. Rc1 {[%clk 0:02:17]}  e5 {[%clk 0:02:56]} 13. Qb1 {[%clk 0:01:38]}  exd4 {[%clk 0:02:55]} 14. Nxe4 {[%clk 0:01:19]}  dxe4 {[%clk 0:02:52]} 15. Bxe4 {[%clk 0:01:20]}  dxe3 {[%clk 0:02:48]} 16. Bxf5 {[%clk 0:00:41]}  exf2+ {[%clk 0:02:39]} 17. Kxf2 {[%clk 0:00:40]}  gxf5 {[%clk 0:02:40]} 18. Bxg7 {[%clk 0:00:37]}  Kxg7 {[%clk 0:02:41]} 19. Qxf5 {[%clk 0:00:34]}  Qf6 {[%clk 0:02:38]} 20. Qh5 {[%clk 0:00:22]}  Qg6 {[%clk 0:02:37]} 21. Qh4 {[%clk 0:00:18]}  Rcd8 {[%clk 0:02:37]} 22. Rhd1 {[%clk 0:00:16]}  h6 {[%clk 0:02:34]} 23. b4 {[%clk 0:00:14]}  a6 {[%clk 0:02:34]} 24. Rxc6 {[%clk 0:00:11]}  Qxc6 {[%clk 0:01:55]} 25. Rxd8 {[%clk 0:00:11]}  Qc2+ {[%clk 0:01:56]} 26. Kg3 {[%clk 0:00:09]}  Qg6+ {[%clk 0:01:54]} 27. Kf2 {[%clk 0:00:09]}  Qc2+ {[%clk 0:01:52]} 28. Rd2 {[%clk 0:00:09]}  Qc1 {[%clk 0:01:50]} 29. Qd4+ {[%clk 0:00:09]}  Kh7 {[%clk 0:01:51]} 30. Qe4+ {[%clk 0:00:08]}  Kg8 {[%clk 0:01:50]} 31. h4 {[%clk 0:00:08]}  Rc8 {[%clk 0:01:48]} 32. Kg3 {[%clk 0:00:08]}  Qc3 {[%clk 0:01:44]} 33. Rd7 {[%clk 0:00:06]}  Qf6 {[%clk 0:01:39]} 34. Qg4+ {[%clk 0:00:04]}  Kf8 {[%clk 0:01:39]} 35. Rxf7+ {[%clk 0:00:05]}  Kxf7 {[%clk 0:01:39]} 36. Qxc8 {[%clk 0:00:05]}  Qd6+ {[%clk 0:01:40]} 37. Kh3 {[%clk 0:00:05]}  Qd1 {[%clk 0:01:41]} 38. Qf5+ {[%clk 0:00:04]}  Ke7 {[%clk 0:01:41]} 39. Ne5 {[%clk 0:00:05]}  Qh1+ {[%clk 0:01:40]} 40. Kg3 {[%clk 0:00:05]}  Qe1+ {[%clk 0:01:41]} 41. Kg4 {[%clk 0:00:05]}  Qe2+ {[%clk 0:01:42]} 42. Kf4 {[%clk 0:00:04]}  Qf2+ {[%clk 0:01:42]} 43. Nf3 {[%clk 0:00:04]}  Qxg2 {[%clk 0:01:42]} 44. Qe4+ {[%clk 0:00:04]}  Kd6 {[%clk 0:01:41]} 45. Qxb7 {[%clk 0:00:05]}  Qh1 {[%clk 0:01:38]} 46. Qxa6+ {[%clk 0:00:05]}  Kc7 {[%clk 0:01:38]} 47. Qa7+ {[%clk 0:00:05]}  Kc8 {[%clk 0:01:38]} 48. Qa8+ {[%clk 0:00:05]}  Kc7 {[%clk 0:01:38]} 49. Qa7+ {[%clk 0:00:04]}  Kc8 {[%clk 0:01:38]} 50. Qe3 {[%clk 0:00:05]}  h5 {[%clk 0:01:36]} 51. b5 {[%clk 0:00:05]}  Kb7 {[%clk 0:01:36]} 52. a4 {[%clk 0:00:04]}  Qa1 {[%clk 0:01:33]} 53. Qe4+ {[%clk 0:00:03]}  Kc8 {[%clk 0:01:34]} 54. Qc6+ {[%clk 0:00:03]}  Kd8 {[%clk 0:01:34]} 55. Ne5 {[%clk 0:00:04]}  Qd4+ {[%clk 0:01:34]} 56. Kf5 {[%clk 0:00:04]}  Qf2+ {[%clk 0:01:32]} 57. Kg6 {[%clk 0:00:04]}  Qg3+ {[%clk 0:01:32]} 58. Kh7 {[%clk 0:00:03]}  Qxe5 {[%clk 0:01:32]} 59. Qg6 {[%clk 0:00:03]}  Qe7+ {[%clk 0:01:30]} 60. Qg7 {[%clk 0:00:03]}  Qxh4 {[%clk 0:01:30]} 61. b6 {[%clk 0:00:03]}  Qe4+ {[%clk 0:01:31]} 62. Kh6 {[%clk 0:00:03]}  Qc6+ {[%clk 0:01:26]} 63. Qg6 {[%clk 0:00:02]}  Qxg6+ {[%clk 0:01:25]} 64. Kxg6 {[%clk 0:00:03]}  h4 {[%clk 0:01:26]} 65. a5 {[%clk 0:00:04]}  Kc8 {[%clk 0:01:25]} 66. a6 {[%clk 0:00:02]}  h3 {[%clk 0:01:26]} 67. Kf6 {[%clk 0:00:02]}  h2 {[%clk 0:01:26]} 68. Ke6 {[%clk 0:00:03]}  h1=Q {[%clk 0:01:26]} 69. Kd6 {[%clk 0:00:04]}  Qe4 {[%clk 0:01:24]} 70. Kc5 {[%clk 0:00:03]}  Kb8 {[%clk 0:01:24]} 71. Kb5 {[%clk 0:00:03]}  Qe5+ {[%clk 0:01:25]} 72. Kb4 {[%clk 0:00:03]}  Qd5 {[%clk 0:01:25]} 73. Ka4 {[%clk 0:00:02]}  Qc5 {[%clk 0:01:25]} 0-1


[Site "https://www.chess.com"]

[Event "Titled Tuesday Blitz March 14 Early 2023"]
[White "Mirzanurov, Bulat"]
[Black "Ahn, Hongjin"]
[WhiteFideId "4184521"]
[BlackFideId "13201492"]
[WhiteElo "2019"]
[BlackElo "2182"]
[Result "1-0"]
[Round "02"]
[TimeControl "180+2"]
[Date "2023.03.14"]
[WhiteClock "0:00:07"]
[BlackClock "0:00:01"]

1. e4 {[%clk 0:03:00]}  d6 {[%clk 0:02:52]} 2. d4 {[%clk 0:03:00]}  Nf6 {[%clk 0:02:30]} 3. Nc3 {[%clk 0:02:58]}  g6 {[%clk 0:02:20]} 4. Be3 {[%clk 0:02:56]}  Nc6 {[%clk 0:02:10]} 5. Qd2 {[%clk 0:02:54]}  e5 {[%clk 0:02:04]} 6. Nf3 {[%clk 0:02:46]}  Qe7 {[%clk 0:01:49]} 7. O-O-O {[%clk 0:02:28]}  Bg4 {[%clk 0:01:37]} 8. Bb5 {[%clk 0:02:08]}  Bxf3 {[%clk 0:01:24]} 9. gxf3 {[%clk 0:02:08]}  a6 {[%clk 0:01:18]} 10. Ba4 {[%clk 0:02:01]}  exd4 {[%clk 0:00:05]} 11. Bxd4 {[%clk 0:02:00]}  O-O-O {[%clk 0:00:04]} 12. Bxc6 {[%clk 0:01:54]}  bxc6 {[%clk 0:00:05]} 13. Qg5 {[%clk 0:01:31]}  Bg7 {[%clk 0:00:05]} 14. Qa5 {[%clk 0:01:23]}  Kb7 {[%clk 0:00:05]} 15. Qb4+ {[%clk 0:00:57]}  Ka8 {[%clk 0:00:05]} 16. e5 {[%clk 0:00:56]}  Nd5 {[%clk 0:00:03]} 17. Nxd5 {[%clk 0:00:55]}  cxd5 {[%clk 0:00:03]} 18. exd6 {[%clk 0:00:54]}  Qg5+ {[%clk 0:00:03]} 19. Kb1 {[%clk 0:00:45]}  Rb8 {[%clk 0:00:03]} 20. Qa5 {[%clk 0:00:36]}  Bxd4 {[%clk 0:00:03]} 21. Rxd4 {[%clk 0:00:36]}  Rb6 {[%clk 0:00:03]} 22. Qxd5+ {[%clk 0:00:33]}  Qxd5 {[%clk 0:00:03]} 23. Rxd5 {[%clk 0:00:34]}  cxd6 {[%clk 0:00:04]} 24. Rhd1 {[%clk 0:00:33]}  Rhb8 {[%clk 0:00:05]} 25. b3 {[%clk 0:00:33]}  Rd8 {[%clk 0:00:05]} 26. c4 {[%clk 0:00:33]}  Rc6 {[%clk 0:00:05]} 27. c5 {[%clk 0:00:32]}  Re8 {[%clk 0:00:05]} 28. cxd6 {[%clk 0:00:30]}  Rd8 {[%clk 0:00:06]} 29. Kb2 {[%clk 0:00:27]}  Kb7 {[%clk 0:00:06]} 30. b4 {[%clk 0:00:27]}  Kb6 {[%clk 0:00:07]} 31. Kb3 {[%clk 0:00:26]}  Rd7 {[%clk 0:00:06]} 32. a4 {[%clk 0:00:25]}  Rc8 {[%clk 0:00:07]} 33. b5 {[%clk 0:00:21]}  a5 {[%clk 0:00:06]} 34. Re5 {[%clk 0:00:20]}  Rcd8 {[%clk 0:00:06]} 35. Re7 {[%clk 0:00:19]}  Rxd6 {[%clk 0:00:03]} 36. Rxd6+ {[%clk 0:00:17]}  Rxd6 {[%clk 0:00:04]} 37. Rxf7 {[%clk 0:00:18]}  h5 {[%clk 0:00:04]} 38. Rg7 {[%clk 0:00:17]}  Rf6 {[%clk 0:00:04]} 39. Kc4 {[%clk 0:00:16]}  Rf4+ {[%clk 0:00:04]} 40. Kd5 {[%clk 0:00:16]}  Rf6 {[%clk 0:00:04]} 41. f4 {[%clk 0:00:15]}  Rxf4 {[%clk 0:00:03]} 42. Rxg6+ {[%clk 0:00:15]}  Kb7 {[%clk 0:00:04]} 43. Rg5 {[%clk 0:00:12]}  h4 {[%clk 0:00:04]} 44. Rh5 {[%clk 0:00:12]}  Rxa4 {[%clk 0:00:04]} 45. Kc5 {[%clk 0:00:11]}  Rf4 {[%clk 0:00:04]} 46. Rh7+ {[%clk 0:00:11]}  Kb8 {[%clk 0:00:04]} 47. Kb6 {[%clk 0:00:09]}  Rf6+ {[%clk 0:00:05]} 48. Kxa5 {[%clk 0:00:09]}  Rxf2 {[%clk 0:00:06]} 49. Rxh4 {[%clk 0:00:09]}  Kb7 {[%clk 0:00:06]} 50. Rh7+ {[%clk 0:00:09]}  Kb8 {[%clk 0:00:07]} 51. Ka6 {[%clk 0:00:06]}  Rf8 {[%clk 0:00:06]} 52. b6 {[%clk 0:00:06]}  Rg8 {[%clk 0:00:06]} 53. h4 {[%clk 0:00:05]}  Ka8 {[%clk 0:00:06]} 54. h5 {[%clk 0:00:05]}  Kb8 {[%clk 0:00:06]} 55. Rf7 {[%clk 0:00:06]}  Rh8 {[%clk 0:00:04]} 56. h6 {[%clk 0:00:06]}  Kc8 {[%clk 0:00:04]} 57. h7 {[%clk 0:00:06]}  Kb8 {[%clk 0:00:01]} 58. Rg7 {[%clk 0:00:07]} 1-0


[Site "https://www.chess.com"]

[Event "Titled Tuesday Blitz March 14 Early 2023"]
[White "Jeet, Jain"]
[Black "Fernandez Siles, Luis"]
[WhiteFideId "5073022"]
[BlackFideId "2209420"]
[WhiteElo "2067"]
[BlackElo "2186"]
[Result "1-0"]
[Round "02"]
[TimeControl "180+2"]
[Date "2023.03.14"]
[WhiteClock "0:00:27"]
[BlackClock "0:00:01"]

1. c4 {[%clk 0:03:00]}  e5 {[%clk 0:02:57]} 2. Nc3 {[%clk 0:02:56]}  Nf6 {[%clk 0:02:56]} 3. g3 {[%clk 0:02:54]}  c6 {[%clk 0:02:55]} 4. Bg2 {[%clk 0:02:53]}  d5 {[%clk 0:02:55]} 5. cxd5 {[%clk 0:02:52]}  cxd5 {[%clk 0:02:56]} 6. d4 {[%clk 0:02:53]}  e4 {[%clk 0:02:51]} 7. Bg5 {[%clk 0:02:52]}  Be6 {[%clk 0:02:50]} 8. Qb3 {[%clk 0:02:44]}  Nc6 {[%clk 0:02:43]} 9. Bxf6 {[%clk 0:02:39]}  gxf6 {[%clk 0:02:42]} 10. e3 {[%clk 0:02:36]}  Bd6 {[%clk 0:02:19]} 11. Nge2 {[%clk 0:02:24]}  O-O {[%clk 0:02:04]} 12. O-O {[%clk 0:02:14]}  Nb4 {[%clk 0:01:58]} 13. f3 {[%clk 0:02:11]}  f5 {[%clk 0:01:54]} 14. a3 {[%clk 0:02:08]}  Nd3 {[%clk 0:01:53]} 15. fxe4 {[%clk 0:02:03]}  fxe4 {[%clk 0:01:45]} 16. Nc1 {[%clk 0:01:37]}  Nxc1 {[%clk 0:01:35]} 17. Raxc1 {[%clk 0:01:38]}  Qg5 {[%clk 0:01:31]} 18. Ne2 {[%clk 0:01:31]}  Rac8 {[%clk 0:01:15]} 19. Rxc8 {[%clk 0:01:29]}  Rxc8 {[%clk 0:01:14]} 20. Nf4 {[%clk 0:01:30]}  Bxf4 {[%clk 0:01:12]} 21. Rxf4 {[%clk 0:01:28]}  Rc1+ {[%clk 0:01:07]} 22. Kf2 {[%clk 0:01:25]}  h5 {[%clk 0:00:38]} 23. Qxb7 {[%clk 0:01:21]}  Rc2+ {[%clk 0:00:37]} 24. Kf1 {[%clk 0:01:08]}  Rc1+ {[%clk 0:00:37]} 25. Ke2 {[%clk 0:01:06]}  Rc2+ {[%clk 0:00:37]} 26. Kf1 {[%clk 0:01:04]}  Rc1+ {[%clk 0:00:38]} 27. Kf2 {[%clk 0:01:05]}  Rc2+ {[%clk 0:00:38]} 28. Kg1 {[%clk 0:01:05]}  Rc1+ {[%clk 0:00:37]} 29. Bf1 {[%clk 0:01:03]}  Bh3 {[%clk 0:00:32]} 30. Qb8+ {[%clk 0:01:00]}  Kg7 {[%clk 0:00:25]} 31. Qe5+ {[%clk 0:00:48]}  Qxe5 {[%clk 0:00:25]} 32. dxe5 {[%clk 0:00:49]}  Re1 {[%clk 0:00:20]} 33. a4 {[%clk 0:00:44]}  Bxf1 {[%clk 0:00:20]} 34. Rxf1 {[%clk 0:00:45]}  Rxe3 {[%clk 0:00:21]} 35. Rd1 {[%clk 0:00:41]}  Rb3 {[%clk 0:00:20]} 36. Rxd5 {[%clk 0:00:41]}  Rxb2 {[%clk 0:00:20]} 37. Ra5 {[%clk 0:00:41]}  e3 {[%clk 0:00:20]} 38. Kf1 {[%clk 0:00:40]}  Rxh2 {[%clk 0:00:19]} 39. Rxa7 {[%clk 0:00:39]}  Kg6 {[%clk 0:00:18]} 40. a5 {[%clk 0:00:38]}  Kf5 {[%clk 0:00:16]} 41. Rxf7+ {[%clk 0:00:37]}  Ke4 {[%clk 0:00:16]} 42. e6 {[%clk 0:00:34]}  Kd3 {[%clk 0:00:16]} 43. Rd7+ {[%clk 0:00:31]}  Ke4 {[%clk 0:00:12]} 44. e7 {[%clk 0:00:31]}  Kf3 {[%clk 0:00:09]} 45. Kg1 {[%clk 0:00:26]}  Rg2+ {[%clk 0:00:01]} 46. Kh1 {[%clk 0:00:27]} 1-0


[Site "https://www.chess.com"]

[Event "Titled Tuesday Blitz March 14 Early 2023"]
[White "Bennett, Patrick"]
[Black "Turgut, Aydin"]
[WhiteFideId "1801228"]
[BlackFideId "2078791"]
[WhiteElo "2368"]
[BlackElo "2259"]
[Result "0-1"]
[Round "02"]
[TimeControl "180+2"]
[Date "2023.03.14"]
[WhiteClock "0:01:13"]
[BlackClock "0:00:52"]

1. d4 {[%clk 0:02:55]}  d5 {[%clk 0:02:59]} 2. c4 {[%clk 0:02:53]}  e6 {[%clk 0:02:58]} 3. Nc3 {[%clk 0:02:54]}  Bb4 {[%clk 0:02:58]} 4. Bd2 {[%clk 0:02:53]}  Nf6 {[%clk 0:02:56]} 5. e3 {[%clk 0:02:54]}  O-O {[%clk 0:02:56]} 6. Nf3 {[%clk 0:02:53]}  c5 {[%clk 0:02:57]} 7. cxd5 {[%clk 0:02:53]}  cxd4 {[%clk 0:02:56]} 8. Nxd4 {[%clk 0:02:52]}  exd5 {[%clk 0:02:55]} 9. Bd3 {[%clk 0:02:51]}  Nc6 {[%clk 0:02:55]} 10. Nxc6 {[%clk 0:02:51]}  bxc6 {[%clk 0:02:56]} 11. O-O {[%clk 0:02:50]}  Rb8 {[%clk 0:02:55]} 12. Qc2 {[%clk 0:02:49]}  Bd6 {[%clk 0:02:55]} 13. f4 {[%clk 0:02:45]}  Re8 {[%clk 0:02:44]} 14. Rae1 {[%clk 0:02:44]}  h5 {[%clk 0:02:34]} 15. b3 {[%clk 0:02:43]}  Ng4 {[%clk 0:02:15]} 16. h3 {[%clk 0:02:41]}  Nf6 {[%clk 0:02:04]} 17. Na4 {[%clk 0:02:34]}  Ne4 {[%clk 0:01:59]} 18. Bxe4 {[%clk 0:02:33]}  Rxe4 {[%clk 0:01:35]} 19. Qxc6 {[%clk 0:02:25]}  Bb7 {[%clk 0:01:35]} 20. Qc1 {[%clk 0:02:24]}  Rc8 {[%clk 0:01:33]} 21. Qb2 {[%clk 0:02:20]}  h4 {[%clk 0:01:27]} 22. Bc3 {[%clk 0:02:16]}  f6 {[%clk 0:01:27]} 23. Bd4 {[%clk 0:02:14]}  Ba6 {[%clk 0:01:22]} 24. Rf2 {[%clk 0:02:09]}  Qe7 {[%clk 0:01:21]} 25. Nc3 {[%clk 0:02:05]}  Rxd4 {[%clk 0:01:21]} 26. Rd2 {[%clk 0:01:26]}  Rxd2 {[%clk 0:01:11]} 27. Qxd2 {[%clk 0:01:25]}  Rxc3 {[%clk 0:01:05]} 28. Qxc3 {[%clk 0:01:22]}  Bb4 {[%clk 0:01:05]} 29. Qc1 {[%clk 0:01:19]}  Bxe1 {[%clk 0:01:05]} 30. Qxe1 {[%clk 0:01:19]}  d4 {[%clk 0:01:05]} 31. e4 {[%clk 0:01:19]}  d3 {[%clk 0:01:05]} 32. e5 {[%clk 0:01:17]}  fxe5 {[%clk 0:01:05]} 33. fxe5 {[%clk 0:01:16]}  Qc5+ {[%clk 0:01:00]} 34. Kh2 {[%clk 0:01:13]}  Qd5 {[%clk 0:00:52]} 0-1


[Site "https://www.chess.com"]

[Event "Titled Tuesday Blitz March 14 Early 2023"]
[White "Alahakoon, Isuru"]
[Black "Melikyan, Gnel"]
[WhiteFideId "9900993"]
[BlackFideId "54109990"]
[WhiteElo "1995"]
[BlackElo "2138"]
[Result "0-1"]
[Round "02"]
[TimeControl "180+2"]
[Date "2023.03.14"]
[WhiteClock "0:00:08"]
[BlackClock "0:00:48"]

1. Nf3 {[%clk 0:02:33]}  Na6 {[%clk 0:02:51]} 2. d4 {[%clk 0:02:32]}  c5 {[%clk 0:02:49]} 3. e4 {[%clk 0:02:31]}  b6 {[%clk 0:02:48]} 4. Nc3 {[%clk 0:02:30]}  cxd4 {[%clk 0:02:46]} 5. Nxd4 {[%clk 0:02:30]}  Nc5 {[%clk 0:02:46]} 6. Be3 {[%clk 0:02:28]}  Bb7 {[%clk 0:02:45]} 7. f3 {[%clk 0:02:28]}  g6 {[%clk 0:02:42]} 8. Be2 {[%clk 0:02:27]}  Bg7 {[%clk 0:02:42]} 9. O-O {[%clk 0:02:27]}  Nf6 {[%clk 0:02:43]} 10. Qd2 {[%clk 0:02:25]}  h5 {[%clk 0:02:34]} 11. b4 {[%clk 0:02:09]}  Ne6 {[%clk 0:02:28]} 12. Nxe6 {[%clk 0:02:05]}  dxe6 {[%clk 0:02:29]} 13. Rad1 {[%clk 0:01:58]}  O-O {[%clk 0:02:26]} 14. Qe1 {[%clk 0:01:55]}  Qc8 {[%clk 0:02:21]} 15. Bd4 {[%clk 0:01:49]}  Rd8 {[%clk 0:02:18]} 16. Kh1 {[%clk 0:01:24]}  Qc6 {[%clk 0:01:28]} 17. Qf2 {[%clk 0:01:22]}  Rac8 {[%clk 0:01:26]} 18. Rd2 {[%clk 0:01:22]}  e5 {[%clk 0:01:22]} 19. Bb5 {[%clk 0:00:59]}  Qc7 {[%clk 0:01:19]} 20. Nd5 {[%clk 0:00:16]}  Nxd5 {[%clk 0:01:16]} 21. Ba1 {[%clk 0:00:14]}  Nxb4 {[%clk 0:01:12]} 22. Rfd1 {[%clk 0:00:11]}  a6 {[%clk 0:01:09]} 23. Bf1 {[%clk 0:00:10]}  Rxd2 {[%clk 0:01:02]} 24. Qxd2 {[%clk 0:00:11]}  Nc6 {[%clk 0:00:58]} 25. Qd7 {[%clk 0:00:10]}  Qxd7 {[%clk 0:00:56]} 26. Rxd7 {[%clk 0:00:11]}  Rd8 {[%clk 0:00:56]} 27. Rxb7 {[%clk 0:00:10]}  Rd1 {[%clk 0:00:56]} 28. Kg1 {[%clk 0:00:11]}  Bh6 {[%clk 0:00:52]} 29. Kf2 {[%clk 0:00:10]}  Rxa1 {[%clk 0:00:52]} 30. Rxb6 {[%clk 0:00:10]}  Nd4 {[%clk 0:00:50]} 31. c3 {[%clk 0:00:10]}  Rxa2+ {[%clk 0:00:50]} 32. Kg3 {[%clk 0:00:09]}  Bf4+ {[%clk 0:00:50]} 33. Kh3 {[%clk 0:00:09]}  Nxf3 {[%clk 0:00:49]} 34. g3 {[%clk 0:00:08]}  Rxh2# {[%clk 0:00:48]} 0-1


[Site "https://www.chess.com"]

[Event "Titled Tuesday Blitz March 14 Early 2023"]
[White "Sahil, Tickoo"]
[Black "Bews, Steven"]
[WhiteFideId "5019710"]
[BlackFideId "2400529"]
[WhiteElo "2086"]
[BlackElo "2575"]
[Result "0-1"]
[Round "02"]
[TimeControl "180+2"]
[Date "2023.03.14"]
[WhiteClock "0:00:16"]
[BlackClock "0:01:31"]

1. d4 {[%clk 0:02:49]}  Nf6 {[%clk 0:02:58]} 2. Bf4 {[%clk 0:02:46]}  d5 {[%clk 0:02:57]} 3. e3 {[%clk 0:02:46]}  e6 {[%clk 0:02:58]} 4. Nd2 {[%clk 0:02:46]}  c5 {[%clk 0:02:58]} 5. c3 {[%clk 0:02:46]}  Nc6 {[%clk 0:02:59]} 6. Ngf3 {[%clk 0:02:46]}  cxd4 {[%clk 0:02:59]} 7. exd4 {[%clk 0:02:45]}  Nh5 {[%clk 0:03:00]} 8. Be3 {[%clk 0:02:45]}  Bd6 {[%clk 0:03:00]} 9. Bd3 {[%clk 0:02:45]}  Nf4 {[%clk 0:02:58]} 10. Bxf4 {[%clk 0:02:46]}  Bxf4 {[%clk 0:02:59]} 11. O-O {[%clk 0:02:47]}  O-O {[%clk 0:03:00]} 12. Re1 {[%clk 0:02:47]}  Qc7 {[%clk 0:02:58]} 13. g3 {[%clk 0:02:48]}  Bd6 {[%clk 0:02:58]} 14. Rc1 {[%clk 0:02:46]}  a6 {[%clk 0:02:56]} 15. a3 {[%clk 0:02:45]}  b5 {[%clk 0:02:55]} 16. Nf1 {[%clk 0:02:40]}  f5 {[%clk 0:02:52]} 17. Ne3 {[%clk 0:02:27]}  f4 {[%clk 0:02:51]} 18. Ng4 {[%clk 0:02:25]}  fxg3 {[%clk 0:02:47]} 19. hxg3 {[%clk 0:02:25]}  Bd7 {[%clk 0:02:47]} 20. Nge5 {[%clk 0:02:24]}  Bxe5 {[%clk 0:02:38]} 21. Nxe5 {[%clk 0:02:24]}  Rf6 {[%clk 0:02:33]} 22. Qh5 {[%clk 0:02:18]}  g6 {[%clk 0:02:32]} 23. Qh4 {[%clk 0:02:08]}  Raf8 {[%clk 0:02:31]} 24. Rc2 {[%clk 0:02:08]}  Nxe5 {[%clk 0:02:24]} 25. Rxe5 {[%clk 0:02:06]}  Rf3 {[%clk 0:02:21]} 26. Rd2 {[%clk 0:02:00]}  a5 {[%clk 0:02:15]} 27. Rg5 {[%clk 0:01:10]}  R8f6 {[%clk 0:02:09]} 28. Bf1 {[%clk 0:01:04]}  b4 {[%clk 0:02:09]} 29. axb4 {[%clk 0:00:41]}  axb4 {[%clk 0:02:09]} 30. cxb4 {[%clk 0:00:41]}  Qc1 {[%clk 0:02:01]} 31. Re2 {[%clk 0:00:40]}  Bb5 {[%clk 0:01:56]} 32. Rge5 {[%clk 0:00:34]}  Bxe2 {[%clk 0:01:56]} 33. Rxe2 {[%clk 0:00:34]}  Kg7 {[%clk 0:01:36]} 34. b5 {[%clk 0:00:31]}  Rb3 {[%clk 0:01:34]} 35. Kg2 {[%clk 0:00:25]}  Rxb2 {[%clk 0:01:33]} 36. Qg4 {[%clk 0:00:16]}  h5 {[%clk 0:01:31]} 0-1


[Site "https://www.chess.com"]